bitfinex/quotes_SOLUSD_20240912
["timestamp","ask_amount","ask_price","bid_price","bid_amount"]
[1726171422854,27.0218,135.96,135.88,0.2507921]
[1726171425046,23.776884,135.95,135.88,0.2507921]
[1726171428674,23.776884,135.95,135.89,20.0]
[1726171430259,27.14729,135.96,135.89,20.0]
[1726171430648,1.83935128,135.95,135.89,20.0]
[1726171433974,27.14729,135.96,135.89,20.0]
[1726171434165,23.902374,135.95,135.89,20.0]
[1726171434363,0.12549,135.95,135.89,20.0]
[1726171434681,27.0218,135.96,135.89,20.0]
[1726171437475,23.902374,135.97,135.89,20.0]
[1726171437671,36.79725656,135.98,135.91,20.0]
[1726171440783,7.66381498,135.97,135.91,20.0]
[1726171442483,36.79725656,135.98,135.91,20.0]
[1726171445481,7.66452077,135.97,135.91,20.0]
[1726171446283,36.79725656,135.98,135.91,20.0]
[1726171448468,36.94965275,136.01,135.91,20.0]
[1726171448486,36.21283447,135.99,135.91,20.0]
[1726171451364,0.2507905,136.02,135.91,20.0]
[1726171451365,36.94965275,136.01,135.91,20.0]
[1726171451592,36.94965275,136.01,135.92,0.25098]
[1726171458580,36.94965275,136.01,135.94,12.3855]
[1726171458891,36.94965275,136.01,135.95,30.8293]
[1726171459102,36.94965275,136.01,135.96,0.12549]
[1726171461781,36.94965275,136.01,135.95,30.8293]
[1726171465872,36.21283447,135.99,135.92,11.5644]
[1726171466088,38.63608551,135.98,135.92,11.5644]
[1726171466311,36.79725656,135.98,135.92,11.5644]
[1726171466620,1.83894828,135.97,135.91,12.3855]
[1726171466894,9.5050412,135.97,135.91,12.3855]
[1726171467602,1.83894828,135.97,135.92,20.0]
[1726171468335,36.79725656,135.98,135.92,20.0]
[1726171470581,7.6650158,135.97,135.92,20.0]
[1726171471661,36.79725656,135.98,135.92,20.0]
[1726171474593,7.66427955,135.97,135.92,20.0]
[1726171475476,36.94965275,136.01,135.92,20.0]
[1726171475682,36.21283447,135.99,135.92,20.0]
[1726171475884,38.6360044,135.98,135.92,20.0]
[1726171476196,36.94965275,136.01,135.92,20.0]
[1726171476406,1.83874804,136.0,135.92,20.0]
[1726171476911,36.21283447,135.99,135.92,20.0]
[1726171477202,1.83874829,135.98,135.92,20.0]
[1726171477505,36.21283447,135.99,135.92,20.0]
[1726171478307,7.66409707,135.98,135.92,20.0]
[1726171478509,44.46135363,135.98,135.92,20.0]
[1726171479409,36.79725656,135.98,135.92,20.0]
[1726171479585,36.02361814,136.0,135.92,20.0]
[1726171481400,1.83881506,135.99,135.92,20.0]
[1726171481809,1.83881565,135.98,135.92,20.0]
[1726171482021,38.63607221,135.98,135.92,20.0]
[1726171482199,36.02361814,136.0,135.92,20.0]
[1726171482406,7.66266884,135.97,135.92,20.0]
[1726171482606,36.79725656,135.98,135.92,20.0]
[1726171483021,7.66266884,135.96,135.92,20.0]
[1726171484413,36.94965275,136.01,135.95,20.0]
[1726171485195,38.78822406,136.01,135.95,20.0]
[1726171485404,38.78822406,136.01,135.92,20.0]
[1726171485707,36.21283447,135.99,135.92,20.0]
[1726171486012,38.63626578,135.98,135.91,23.9834]
[1726171486218,38.63626578,135.98,135.85,4.29171813]
[1726171486219,23.902374,135.97,135.88,48.03155338]
[1726171486389,23.776884,135.95,135.88,48.03155338]
[1726171486592,1.96513891,135.94,135.88,23.50995338]
[1726171486817,29.83923891,135.94,135.88,22.2307921]
[1726171487009,23.776884,135.93,135.88,22.2307921]
[1726171487198,23.776884,135.91,135.88,0.2507921]
[1726171487403,23.776884,135.89,135.88,0.2507921]
[1726171487607,23.902374,135.89,135.88,0.2507921]
[1726171491408,23.776884,135.92,135.88,0.2507921]
[1726171491604,1.84033796,135.93,135.88,0.2507921]
[1726171491605,0.12549,135.91,135.88,0.2507921]
[1726171491869,0.12549,135.92,135.88,0.2507921]
[1726171493117,1.96551818,135.92,135.88,0.2507921]
[1726171493597,23.776884,135.91,135.88,0.2507921]
[1726171493797,1.84003287,135.9,135.88,0.2507921]
[1726171494011,1.84003287,135.89,135.88,0.2507921]
[1726171494212,23.776884,135.91,135.88,0.2507921]
[1726171494420,1.84003248,135.9,135.88,0.2507921]
[1726171494718,1.84003183,135.89,135.88,0.2507921]
[1726171495060,23.776884,135.91,135.88,0.2507921]
[1726171495122,1.84003135,135.9,135.88,0.2507921]
[1726171495309,1.8400313,135.89,135.88,0.2507921]
[1726171496106,25.7424053,135.89,135.88,0.2507921]
[1726171496615,23.902374,135.89,135.88,0.2507921]
[1726171500345,62.319674,135.89,135.84,0.2507913]
[1726171500643,23.776884,135.86,135.84,0.2507913]
[1726171500843,25.86902228,135.85,135.84,0.2507913]
[1726171501041,36.83982228,135.85,135.8,0.2507913]
[1726171501241,52.149284,135.84,135.8,0.2507913]
[1726171501423,40.1561,135.82,135.8,0.2507913]
[1726171501618,40.1561,135.82,135.76,0.2507913]
[1726171501619,2.09318411,135.81,135.76,0.2507913]
[1726171501836,0.25098,135.81,135.76,0.2507913]
[1726171502041,1.84223123,135.8,135.76,0.2507913]
[1726171502219,2.09316716,135.79,135.76,0.2507913]
[1726171502629,29.9425,135.78,135.76,0.2507913]
[1726171502936,2.0933782,135.77,135.76,0.2507913]
[1726171503149,25.8702622,135.77,135.76,0.2507913]
[1726171503448,25.8702622,135.77,135.74,0.3263072]
[1726171503449,23.776884,135.76,135.74,0.3263072]
[1726171503743,25.87023346,135.75,135.74,0.3263072]
[1726171504137,23.902374,135.75,135.74,0.3263072]
[1726171511738,37.81604101,135.75,135.74,0.3263072]
[1726171512071,35.973864,135.75,135.74,0.3263072]
[1726171512235,37.81644014,135.75,135.74,0.3263072]
[1726171513437,35.973864,135.75,135.74,0.3263072]
[1726171513839,12.07149,135.75,135.74,0.3263072]
[1726171514093,11.946,135.75,135.74,0.3263072]
[1726171514341,12.07149,135.75,135.74,0.3263072]
[1726171514751,0.12549,135.75,135.74,0.3263072]
[1726171514947,41.5345,135.78,135.74,0.3263072]
[1726171515446,23.902374,135.77,135.74,0.3263072]
[1726171516151,25.74431143,135.77,135.74,0.3263072]
[1726171516648,23.902374,135.77,135.74,0.3263072]
[1726171518048,41.5345,135.78,135.74,0.3263072]
[1726171518235,1.84174276,135.77,135.74,0.3263072]
[1726171518432,41.5345,135.78,135.74,0.3263072]
[1726171519028,1.84172633,135.77,135.74,0.3263072]
[1726171519228,0.12549,135.76,135.74,0.3263072]
[1726171520126,41.5345,135.78,135.74,0.3263072]
[1726171520329,29.9425,135.78,135.74,0.3263072]
[1726171520730,11.9819,135.81,135.74,0.3263072]
[1726171520731,41.1146,135.81,135.74,0.3263072]
[1726171521153,29.1327,135.81,135.74,0.3263072]
[1726171521327,41.1146,135.85,135.74,0.3263072]
[1726171521656,41.1146,135.85,135.76,20.0]
[1726171521863,41.1146,135.85,135.76,31.3486]
[1726171522353,38.8301,135.89,135.77,0.12549]
[1726171522552,38.8301,135.89,135.77,0.25098]
[1726171522855,1.84052955,135.88,135.77,0.25098]
[1726171523651,23.776884,135.87,135.77,0.25098]
[1726171523957,1.84052975,135.86,135.77,0.25098]
[1726171524164,1.84052988,135.85,135.77,0.25098]
[1726171524426,1.84060255,135.88,135.77,0.25098]
[1726171525541,23.902374,135.87,135.77,0.25098]
[1726171525837,1.8405989,135.86,135.77,0.25098]
[1726171526035,1.84059952,135.85,135.77,0.25098]
[1726171527146,0.12549,135.87,135.76,31.3486]
[1726171527349,23.776884,135.86,135.76,31.3486]
[1726171527555,1.84059786,135.85,135.76,31.3486]
[1726171528032,23.776884,135.86,135.76,31.3486]
[1726171528237,23.776884,135.86,135.77,0.12549]
[1726171528632,1.84067606,135.85,135.77,0.12549]
[1726171528837,1.8407373,135.85,135.77,0.12549]
[1726171530456,23.776884,135.86,135.77,0.12549]
[1726171530657,23.776884,135.86,135.77,0.25098]
[1726171532454,0.12549,135.87,135.77,0.25098]
[1726171532655,25.74285754,135.88,135.77,0.25098]
[1726171532852,23.902374,135.88,135.76,31.3486]
[1726171533027,0.12549,135.87,135.76,31.3486]
[1726171533230,23.902374,135.88,135.76,31.3486]
[1726171533961,27.6491,135.89,135.78,20.0]
[1726171534137,12.0216462,135.93,135.78,20.0]
[1726171534138,29.6017,135.92,135.79,10.9019]
[1726171534345,29.6017,135.92,135.8,20.25098]
[1726171534792,1.84020272,135.91,135.8,20.12549]
[1726171535052,1.84020272,135.91,135.8,20.0]
[1726171535248,24.027864,135.9,135.8,20.0]
[1726171535562,1.84030221,135.89,135.8,20.0]
[1726171537147,23.776884,135.87,135.79,10.9019]
[1726171537351,0.12549,135.86,135.79,10.9019]
[1726171538358,23.776884,135.87,135.79,10.9019]
[1726171538560,23.776884,135.87,135.8,20.0]
[1726171540464,1.84052401,135.86,135.8,20.0]
[1726171540638,1.8405266,135.85,135.8,20.0]
[1726171540967,23.776884,135.87,135.8,20.0]
[1726171541369,31.44222365,135.92,135.8,20.0]
[1726171542638,24.027864,135.91,135.8,20.0]
[1726171543050,23.776884,135.89,135.8,20.0]
[1726171543252,0.12549,135.88,135.8,20.0]
[1726171543462,1.96587892,135.88,135.8,20.0]
[1726171543975,23.776884,135.87,135.8,20.0]
[1726171544142,0.12549,135.88,135.8,20.0]
[1726171544569,23.776884,135.87,135.8,20.0]
[1726171544919,1.84045308,135.86,135.8,20.0]
[1726171545258,0.12549,135.88,135.8,20.0]
[1726171546047,1.96581762,135.88,135.8,20.0]
[1726171546248,0.12549,135.88,135.8,20.0]
[1726171546868,1.96587018,135.88,135.8,20.0]
[1726171550555,23.776884,135.87,135.8,20.0]
[1726171550764,0.25098,135.86,135.8,20.0]
[1726171551168,23.776884,135.85,135.8,20.0]
[1726171551485,1.96640088,135.84,135.78,20.0]
[1726171551569,23.776884,135.83,135.77,13.3049]
[1726171551765,1.84114151,135.82,135.77,13.3049]
[1726171552857,23.776884,135.83,135.77,13.3049]
[1726171553057,1.84109463,135.82,135.78,20.0]
[1726171553771,1.84120451,135.81,135.77,20.0]
[1726171553959,1.84122154,135.82,135.77,20.0]
[1726171555020,23.776884,135.81,135.76,20.0]
[1726171555272,1.84129415,135.8,135.76,20.0]
[1726171555478,23.776884,135.81,135.76,20.0]
[1726171557276,0.12549,135.84,135.76,20.0]
[1726171559151,23.902374,135.85,135.76,20.0]
[1726171559480,23.776884,135.83,135.75,20.0]
[1726171559979,1.84108099,135.82,135.75,20.0]
[1726171560279,1.84107671,135.82,135.75,20.0]
[1726171560650,23.776884,135.83,135.75,20.0]
[1726171560860,1.84102449,135.82,135.75,20.0]
[1726171561490,23.776884,135.83,135.75,20.0]
[1726171562571,23.776884,135.84,135.75,20.0]
[1726171562781,1.84098122,135.83,135.75,20.0]
[1726171562981,23.776884,135.84,135.75,20.0]
[1726171563962,23.776884,135.84,135.75,20.1908495]
[1726171564169,1.84096578,135.83,135.75,20.1908495]
[1726171564484,1.84097097,135.82,135.75,20.1908495]
[1726171564683,23.776884,135.84,135.75,20.1908495]
[1726171565060,25.74333726,135.85,135.75,20.1908495]
[1726171575793,25.74333726,135.85,135.77,20.0]
[1726171577167,25.74333726,135.85,135.75,20.1908495]
[1726171579487,53.150984,135.83,135.75,20.1908495]
[1726171579696,0.25098,135.82,135.75,20.1908495]
[1726171580685,23.776884,135.81,135.75,20.1908495]
[1726171580893,0.12549,135.82,135.75,20.1908495]
[1726171581189,23.776884,135.81,135.75,20.1908495]
[1726171581385,1.8413025,135.8,135.75,20.1908495]
[1726171581578,0.12549,135.82,135.75,20.1908495]
[1726171582108,53.150984,135.83,135.75,20.1908495]
[1726171582290,29.4357553,135.87,135.75,20.1908495]
[1726171582673,29.4357553,135.87,135.77,20.0]
[1726171582874,1.84088084,135.86,135.77,20.0]
[1726171583175,29.4357553,135.87,135.77,20.0]
[1726171583487,23.776884,135.86,135.77,20.0]
[1726171583683,0.25098,135.85,135.77,20.0]
[1726171583884,0.25098,135.85,135.75,20.1908495]
[1726171587208,0.12549,135.85,135.75,20.1908495]
[1726171587373,29.4357553,135.87,135.75,20.1908495]
[1726171588696,24.027864,135.86,135.75,20.1908495]
[1726171588932,29.4357553,135.87,135.77,20.0]
[1726171589290,29.4357553,135.87,135.78,13.3075]
[1726171589581,29.4357553,135.87,135.79,20.0]
[1726171590479,23.902374,135.86,135.79,20.0]
[1726171594392,1.84060956,135.85,135.79,20.0]
[1726171594625,23.776884,135.84,135.79,20.0]
[1726171594799,1.96648028,135.83,135.77,20.1908495]
[1726171595001,1.84098088,135.82,135.77,20.1908495]
[1726171595988,23.776884,135.84,135.77,20.1908495]
[1726171597578,1.840925,135.83,135.77,20.1908495]
[1726171598907,23.776884,135.84,135.77,20.1908495]
[1726171606114,0.12549,135.85,135.77,20.1908495]
[1726171606298,0.12549,135.86,135.77,20.1908495]
[1726171606613,29.4357553,135.87,135.77,20.1908495]
[1726171606811,0.0616553,135.87,135.79,13.3075]
[1726171607028,0.0616553,135.87,135.8,20.0]
[1726171611703,1.90197615,135.87,135.8,20.0]
[1726171613228,1.84031909,135.86,135.8,20.0]
[1726171613396,0.0616553,135.87,135.8,20.0]
[1726171613601,1.90215087,135.87,135.8,20.0]
[1726171615320,0.0616553,135.87,135.8,20.0]
[1726171615628,0.1871453,135.87,135.8,20.0]
[1726171616935,2.02763909,135.87,135.8,20.0]
[1726171617610,0.1871453,135.87,135.8,20.0]
[1726171618705,2.0276368,135.87,135.8,20.0]
[1726171618929,0.1871453,135.87,135.8,20.0]
[1726171619307,2.02763519,135.87,135.8,20.0]
[1726171619728,0.1871453,135.87,135.8,20.0]
[1726171620118,0.0616553,135.87,135.8,20.0]
[1726171620304,0.0616553,135.87,135.82,20.0]
[1726171623736,1.90197682,135.87,135.82,20.0]
[1726171626128,29.319,135.9,135.82,20.0]
[1726171626129,23.776884,135.89,135.82,20.0]
[1726171626426,1.96587905,135.88,135.82,20.0]
[1726171627608,23.776884,135.87,135.82,20.0]
[1726171627915,1.84040529,135.86,135.82,20.0]
[1726171628111,23.776884,135.87,135.82,20.0]
[1726171628309,1.8404057,135.86,135.82,20.0]
[1726171628612,23.776884,135.87,135.82,20.0]
[1726171628910,1.84040594,135.86,135.82,20.0]
[1726171630625,1.84040694,135.85,135.82,20.0]
[1726171630828,1.84040694,135.85,135.8,20.0]
[1726171631332,23.776884,135.87,135.8,20.0]
[1726171631333,1.84050823,135.84,135.8,20.0]
[1726171631539,23.776884,135.87,135.8,20.0]
[1726171631832,0.25098,135.86,135.8,20.0]
[1726171634310,29.319,135.9,135.8,20.0]
[1726171635730,24.027864,135.89,135.8,20.0]
[1726171637540,25.86818951,135.89,135.8,20.0]
[1726171640237,24.027864,135.89,135.8,20.0]
[1726171641037,23.776884,135.87,135.8,20.0]
[1726171641719,25.6173425,135.87,135.8,20.0]
[1726171641923,23.776884,135.87,135.8,20.0]
[1726171642243,23.776884,135.88,135.8,20.0]
[1726171642536,23.776884,135.86,135.8,20.0]
[1726171642775,1.84056319,135.85,135.8,20.0]
[1726171642959,23.776884,135.86,135.8,20.0]
[1726171643115,1.84056306,135.85,135.8,20.0]
[1726171643951,1.84060879,135.84,135.8,20.0]
[1726171646643,1.84060879,135.84,135.78,11.3824]
[1726171646644,23.776884,135.83,135.78,11.3824]
[1726171646851,1.96660617,135.82,135.77,0.2525048]
[1726171647164,23.776884,135.81,135.77,0.2525048]
[1726171647322,1.84126767,135.8,135.77,0.2525048]
[1726171649526,1.8412675,135.79,135.77,0.2525048]
[1726171650645,1.84145753,135.78,135.77,0.2525048]
[1726171650864,1.84145766,135.8,135.77,0.2525048]
[1726171651020,23.776884,135.78,135.77,0.2525048]
[1726171651264,23.902374,135.78,135.77,0.2525048]
[1726171651429,24.027864,135.78,135.77,0.2525048]
[1726171654334,25.87003944,135.78,135.77,0.2525048]
[1726171655145,24.027864,135.78,135.77,0.2525048]
[1726171659757,65.792564,135.78,135.77,0.2525048]
[1726171660141,65.792564,135.78,135.69,20.2525048]
[1726171660336,0.25098,135.77,135.69,0.2525048]
[1726171661653,23.776884,135.75,135.69,0.2525048]
[1726171661954,25.87038524,135.74,135.69,0.2525048]
[1726171662140,1.84252124,135.74,135.69,0.2525048]
[1726171662860,1.84234442,135.77,135.69,0.2525048]
[1726171662946,1.84241656,135.76,135.69,0.2525048]
[1726171663548,24.027864,135.75,135.69,0.2525048]
[1726171663866,25.61937777,135.74,135.69,0.2525048]
[1726171664058,25.87035777,135.74,135.69,0.2525048]
[1726171664672,24.027864,135.74,135.69,0.2525048]
[1726171666439,23.902374,135.74,135.69,0.2525048]
[1726171667232,24.027864,135.74,135.69,0.2525048]
[1726171680154,52.072564,135.74,135.69,0.2525048]
[1726171680566,23.776884,135.73,135.69,0.2525048]
[1726171680778,63.249264,135.74,135.69,0.2525048]
[1726171680779,2.0940902,135.72,135.69,0.2525048]
[1726171682371,0.25098,135.72,135.69,0.2525048]
[1726171682575,1.84301443,135.71,135.69,0.2525048]
[1726171682757,25.87083499,135.7,135.69,0.2525048]
[1726171683889,24.027864,135.7,135.69,0.2525048]
[1726171684654,23.902374,135.7,135.69,0.2525048]
[1726171691270,23.776884,135.7,135.69,0.2525048]
[1726171695081,23.902374,135.7,135.69,0.2525048]
[1726171696656,24.027864,135.7,135.69,0.2525048]
[1726171697076,52.648364,135.7,135.69,0.2525048]
[1726171697287,54.49172032,135.7,135.69,0.2525048]
[1726171697776,66.00442032,135.7,135.69,0.2525048]
[1726171698880,64.161064,135.7,135.69,0.2525048]
[1726171700185,64.035574,135.7,135.69,0.2525048]
[1726171701579,64.161064,135.7,135.69,0.2525048]
[1726171712586,52.648364,135.7,135.69,0.2525048]
[1726171712790,24.027864,135.7,135.69,0.2525048]
[1726171734399,23.776884,135.69,135.65,0.2525048]
[1726171734590,0.25098,135.68,135.65,0.2525048]
[1726171738626,23.776884,135.67,135.65,0.2525048]
[1726171738797,0.25098,135.66,135.65,0.2525048]
[1726171738994,0.12549,135.66,135.65,0.2525048]
[1726171740209,39.5275,135.7,135.65,0.2525048]
[1726171740210,28.4822,135.7,135.65,0.2525048]
[1726171740416,41.5534,135.73,135.65,0.2525048]
[1726171740587,1.84311418,135.72,135.65,0.2525048]
[1726171741517,23.776884,135.71,135.65,0.2525048]
[1726171741704,23.776884,135.69,135.65,0.2525048]
[1726171741899,2.09422442,135.68,135.65,0.2525048]
[1726171742104,25.62012839,135.67,135.65,0.2525048]
[1726171742411,23.902374,135.66,135.65,0.2525048]
[1726171747127,23.776884,135.66,135.65,0.2525048]
[1726171748114,41.5534,135.73,135.65,0.2525048]
[1726171748600,29.6035,135.73,135.65,0.2525048]
[1726171749945,38.8764,135.77,135.65,0.2525048]
[1726171750216,38.8764,135.77,135.65,4.54422293]
[1726171750604,40.71892743,135.77,135.65,4.54422293]
[1726171750796,38.8764,135.77,135.65,4.54422293]
[1726171750995,1.84242376,135.76,135.67,20.0]
[1726171751426,38.8764,135.77,135.67,20.0]
[1726171751619,1.84232611,135.76,135.67,20.0]
[1726171752722,23.902374,135.75,135.67,20.0]
[1726171752911,25.74471075,135.75,135.67,20.0]
[1726171753315,0.12549,135.74,135.67,20.0]
[1726171753617,23.776884,135.73,135.67,20.0]
[1726171753943,1.84233368,135.72,135.67,20.0]
[1726171754927,23.776884,135.73,135.67,20.0]
[1726171755126,1.8423331,135.72,135.67,20.0]
[1726171755724,23.902374,135.71,135.67,20.0]
[1726171755932,1.84258319,135.7,135.67,20.0]
[1726171761220,23.902374,135.71,135.67,20.0]
[1726171763544,23.776884,135.71,135.67,20.0]
[1726171764443,0.12549,135.74,135.67,20.0]
[1726171764621,0.12549,135.73,135.67,20.0]
[1726171764831,23.776884,135.72,135.67,20.0]
[1726171765027,1.84251658,135.71,135.67,20.0]
[1726171765230,1.84253522,135.7,135.67,20.0]
[1726171765713,1.84253494,135.71,135.67,20.0]
[1726171765815,23.776884,135.72,135.67,20.0]
[1726171765816,1.84255389,135.7,135.67,20.0]
[1726171766837,1.84255509,135.71,135.67,20.0]
[1726171767042,23.776884,135.72,135.67,20.0]
[1726171767043,1.84255487,135.7,135.67,20.0]
[1726171768130,1.84260102,135.71,135.67,20.0]
[1726171768450,1.84259486,135.7,135.67,20.0]
[1726171769227,1.84255426,135.71,135.67,20.0]
[1726171769471,1.84255499,135.7,135.67,20.0]
[1726171770345,23.776884,135.72,135.67,20.0]
[1726171770544,0.12549,135.71,135.67,20.0]
[1726171772251,23.776884,135.72,135.67,20.0]
[1726171777135,25.61926865,135.72,135.67,20.0]
[1726171777333,0.12549,135.71,135.67,20.0]
[1726171778438,1.96805077,135.71,135.67,20.0]
[1726171779939,0.12549,135.71,135.67,20.0]
[1726171782050,23.776884,135.72,135.67,20.0]
[1726171782853,1.84238258,135.71,135.67,20.0]
[1726171783055,23.776884,135.72,135.67,20.0]
[1726171783558,1.84246099,135.71,135.67,20.0]
[1726171784167,23.776884,135.72,135.67,20.0]
[1726171785266,1.84245899,135.71,135.67,20.0]
[1726171788062,1.84245697,135.7,135.67,20.0]
[1726171789069,1.84260741,135.71,135.67,20.0]
[1726171789269,1.84260026,135.7,135.67,20.0]
[1726171790354,1.84259152,135.71,135.67,20.0]
[1726171790560,1.84257745,135.7,135.67,20.0]
[1726171791462,1.84259219,135.71,135.67,20.0]
[1726171791770,1.8425943,135.7,135.67,20.0]
[1726171792749,1.84258589,135.71,135.67,20.0]
[1726171792959,1.84259272,135.7,135.67,20.0]
[1726171794077,1.84259885,135.71,135.67,20.0]
[1726171794371,1.84260173,135.7,135.67,20.0]
[1726171794969,1.84260173,135.7,135.65,0.2525048]
[1726171794970,23.776884,135.69,135.65,20.2525048]
[1726171795457,23.776884,135.7,135.65,20.2525048]
[1726171795659,1.84277188,135.69,135.65,20.2525048]
[1726171796558,23.776884,135.68,135.65,20.2525048]
[1726171796765,23.776884,135.68,135.65,0.2525048]
[1726171797070,1.84292361,135.67,135.65,0.2525048]
[1726171802667,23.776884,135.68,135.65,0.2525048]
[1726171803169,1.84293964,135.67,135.65,0.2525048]
[1726171803577,23.776884,135.68,135.65,0.2525048]
[1726171804476,1.842939,135.72,135.67,34.61877498]
[1726171804679,24.027864,135.71,135.68,20.0]
[1726171804974,39.1413,135.73,135.65,0.2525048]
[1726171805772,39.1413,135.73,135.72,34.61877498]
[1726171806799,63.169164,135.73,135.72,34.61877498]
[1726171807593,63.169164,135.73,135.65,0.2525048]
[1726171807881,24.027864,135.72,135.65,0.2525048]
[1726171808070,24.027864,135.72,135.71,14.61877498]
[1726171809664,39.1413,135.73,135.71,14.61877498]
[1726171809894,39.1413,135.73,135.72,14.61877498]
[1726171810084,359.65,135.8,135.77,14.61877498]
[1726171810380,94.35,135.8,135.72,14.61877498]
[1726171810684,66.5,135.8,135.78,14.61877498]
[1726171811185,116.5,135.8,135.78,14.61877498]
[1726171811381,116.5,135.8,135.73,20.0]
[1726171811564,116.5,135.8,135.78,14.61877498]
[1726171811761,72.15,135.78,135.77,14.61877498]
[1726171811959,95.926884,135.78,135.77,14.61877498]
[1726171812989,136.621984,135.78,135.77,14.61877498]
[1726171813788,136.747474,135.78,135.77,14.61877498]
[1726171813964,136.872964,135.78,135.77,14.61877498]
[1726171814786,136.872964,135.78,135.66,20.0]
[1726171815077,24.027864,135.77,135.76,14.61877498]
[1726171815462,46.177864,135.77,135.66,20.0]
[1726171815663,35.670084,135.75,135.73,14.61877498]
[1726171815867,0.12549,135.74,135.73,14.61877498]
[1726171816079,27.8866,135.73,135.71,14.61877498]
[1726171816397,46.177864,135.72,135.71,14.61877498]
[1726171816682,46.177864,135.72,135.7,14.61877498]
[1726171816873,34.822584,135.71,135.65,0.2525048]
[1726171817160,0.25098,135.7,135.69,14.61877498]
[1726171817347,24.027864,135.7,135.69,14.61877498]
[1726171820069,0.25098,135.7,135.69,14.61877498]
[1726171824108,0.25098,135.7,135.68,14.61877498]
[1726171826296,23.776884,135.68,135.65,0.2525048]
[1726171826589,0.25098,135.67,135.66,14.61877498]
[1726171835281,0.25098,135.67,135.65,14.87127978]
[1726171837478,0.25098,135.67,135.66,14.61877498]
[1726171839400,0.25098,135.67,135.65,0.2525048]
[1726171839601,0.25098,135.67,135.65,14.87127978]
[1726171845506,0.25098,135.67,135.65,0.2525048]
[1726171848389,23.776884,135.66,135.65,0.2525048]
[1726171848590,24.027864,135.66,135.65,0.2525048]
[1726171857009,46.177864,135.66,135.65,0.2525048]
[1726171858906,24.027864,135.66,135.65,14.87127978]
[1726171859100,49.5476,135.69,135.65,14.87127978]
[1726171859508,72.15,135.68,135.65,14.87127978]
[1726171859817,116.5,135.68,135.65,0.2525048]
[1726171860195,0.12549,135.67,135.65,0.2525048]
[1726171860513,46.177864,135.67,135.65,0.2525048]
[1726171861295,90.527864,135.67,135.65,0.2525048]
[1726171870097,116.5,135.66,135.65,0.0015248]
[1726171870303,140.276884,135.66,135.65,0.0015248]
[1726171872192,140.402374,135.66,135.65,0.0015248]
[1726171872400,140.527864,135.66,135.65,0.0015248]
[1726171878303,140.527864,135.66,135.61,14.87127978]
[1726171878304,72.15,135.64,135.61,14.87127978]
[1726171878528,23.776884,135.63,135.61,14.87127978]
[1726171878730,0.12549,135.62,135.61,14.87127978]
[1726171880527,0.25098,135.62,135.61,14.87127978]
[1726171882406,0.25098,135.62,135.61,0.2525048]
[1726171882609,0.25098,135.62,135.61,14.87127978]
[1726171884635,0.25098,135.62,135.61,0.2525048]
[1726171885137,0.25098,135.62,135.61,14.87127978]
[1726171885822,0.25098,135.62,135.61,0.2525048]
[1726171887128,24.027864,135.62,135.61,0.2525048]
[1726171893824,24.027864,135.62,135.61,14.87127978]
[1726171895550,24.027864,135.62,135.61,0.2525048]
[1726171899320,24.027864,135.62,135.61,14.87127978]
[1726171899519,0.25098,135.62,135.61,0.2525048]
[1726171901428,140.527864,135.62,135.61,0.1270148]
[1726171901839,171.009564,135.62,135.61,0.0015248]
[1726171902145,178.66408877,135.62,135.61,0.0015248]
[1726171903233,72.15,135.59,135.51,43.159]
[1726171903439,23.776884,135.58,135.54,14.61877498]
[1726171904026,0.12549,135.57,135.54,14.61877498]
[1726171905230,0.25098,135.57,135.54,14.61877498]
[1726171905547,0.25098,135.57,135.55,14.61877498]
[1726171905743,0.25098,135.57,135.56,14.87127978]
[1726171906050,72.15,135.61,135.56,14.87127978]
[1726171906254,72.15,135.61,135.57,14.61877498]
[1726171906448,50.0,135.61,135.57,14.61877498]
[1726171906656,82.48622477,135.62,135.56,0.2525048]